bitfinex/quotes_SOLUSD_20260105
["timestamp","ask_amount","ask_price","bid_price","bid_amount"]
[1767639221027,7.29737964,137.04,136.98,7.30033581]
[1767639221321,9.66041622,137.04,136.98,7.30033581]
[1767639221522,0.66892003,137.03,136.98,7.30033581]
[1767639221899,0.66892003,137.03,136.98,9.66337239]
[1767639222415,0.66892003,137.03,136.98,7.30033581]
[1767639223024,0.66892003,137.02,136.98,7.30033581]
[1767639223334,0.66892003,137.02,136.97,82.77832658]
[1767639223335,0.66892003,137.02,136.97,87.71595234]
[1767639223500,0.66892003,137.01,136.97,87.7161263]
[1767639223812,0.66892003,137.0,136.97,61.6]
[1767639224016,7.29889124,137.01,136.97,61.6]
[1767639224415,9.66192782,137.01,136.97,61.6]
[1767639224712,18.24436263,137.03,136.96,7.30133218]
[1767639224921,2.36303658,137.01,136.96,7.30133218]
[1767639225624,9.66147396,137.02,136.96,5.51529]
[1767639226121,9.66147396,137.02,136.95,63.96303658]
[1767639226122,0.60892004,136.99,136.95,61.6]
[1767639226325,0.54892005,136.99,136.95,68.90190194]
[1767639226514,2.85195664,136.99,136.94,20.60226216]
[1767639226825,2.36303658,136.99,136.94,13.3]
[1767639227020,2.36303658,136.99,136.93,43.44359197]
[1767639227819,9.66327759,136.99,136.93,43.44359197]
[1767639228021,2.36303658,136.98,136.93,43.44359197]
[1767639228227,9.66327759,136.99,136.93,43.44359197]
[1767639228408,7.30024101,136.99,136.9,5.51529]
[1767639228609,2.36303658,136.95,136.9,5.51529]
[1767639228817,2.36303658,136.95,136.91,7.30373719]
[1767639229024,3.03195661,136.96,136.91,7.30373719]
[1767639229223,3.03195661,136.96,136.92,7.30352714]
[1767639229622,0.66892003,136.95,136.91,7.30388836]
[1767639229936,2.36303658,136.97,136.91,9.66692494]
[1767639230104,18.24950726,136.99,136.91,9.66692494]
[1767639230501,2.36303658,136.97,136.91,9.66692494]
[1767639230941,9.66361443,136.98,136.91,9.66692494]
[1767639231312,9.6629248,136.99,136.93,2.36303658]
[1767639231835,10.33184483,136.99,136.93,2.36303658]
[1767639232017,0.66892003,136.98,136.92,5.51529]
[1767639232217,0.66892003,136.98,136.92,15.1813814]
[1767639232416,3.03195661,136.98,136.92,15.1813814]
[1767639232923,0.66892003,136.98,136.92,15.1813814]
[1767639233317,0.66892003,136.98,136.92,76.7813814]
[1767639233521,0.66892003,136.98,136.93,2.36303658]
[1767639233835,0.69979748,136.99,136.93,2.36303658]
[1767639234013,0.69979748,136.98,136.92,105.97718209]
[1767639234206,0.69979748,136.98,136.94,7.30246823]
[1767639234409,0.69979748,136.98,136.94,68.90246823]
[1767639235332,0.69979748,137.0,136.95,2.36303658]
[1767639235914,0.69979748,137.0,136.94,9.66550481]
[1767639236212,0.69979748,136.99,136.94,9.66550481]
[1767639236411,0.69979748,136.99,136.94,25.55863881]
[1767639236611,0.69979748,136.99,136.92,29.88734804]
[1767639236612,0.69979748,136.97,136.92,29.88734804]
[1767639237036,0.69979748,136.97,136.93,7.30298892]
[1767639241141,0.69979748,136.97,136.93,9.6660255]
[1767639242040,0.66229682,136.98,136.93,9.6660255]
[1767639242244,2.36303658,137.0,136.94,2.36303658]
[1767639242245,0.66229682,136.99,136.94,2.36303658]
[1767639242821,3.0253334,136.99,136.94,5.51529]
[1767639243040,0.66229682,136.99,136.94,5.51529]
[1767639243242,0.66229682,136.99,136.95,7.30193501]
[1767639243544,0.66229682,137.0,136.95,71.26497159]
[1767639244252,0.66229682,137.0,136.96,7.87832658]
[1767639245339,0.66229682,137.0,136.97,7.3008688]
[1767639245552,0.66229682,137.0,136.96,7.30119592]
[1767639246449,0.66229682,137.0,136.96,9.6642325]
[1767639246650,0.66229682,137.0,136.96,7.30119592]
[1767639248338,0.66229682,137.0,136.96,2.36303658]
[1767639248668,0.66229682,137.02,136.97,2.36303658]
[1767639248964,0.66229682,137.02,136.98,2.36303658]
[1767639249161,0.66229682,137.02,136.97,5.51529]
[1767639249458,0.66229682,137.02,136.98,2.36303658]
[1767639250148,0.66229682,137.02,136.99,2.36303658]
[1767639250550,0.66229682,137.02,136.98,27.9136804]
[1767639251158,2.36303658,137.07,137.01,0.67110806]
[1767639251736,2.36303658,137.07,137.01,3.03414464]
[1767639252357,2.36303658,137.07,137.02,7.29820464]
[1767639253151,7.29525023,137.08,137.0,21.27035473]
[1767639253152,0.66229682,137.04,137.0,21.27035473]
[1767639253454,25.53277576,137.08,137.01,0.67110806]
[1767639253455,0.66229682,137.05,137.01,0.67110806]
[1767639254247,3.0253334,137.05,137.01,0.67110806]
[1767639254460,0.66229682,137.03,136.99,5.51529]
[1767639254642,0.66229682,137.03,137.0,7.29915975]
[1767639255662,0.66229682,137.05,137.01,7.96980006]
[1767639256164,4.35147881,137.05,137.01,7.96980006]
[1767639256801,0.66229682,137.06,137.02,0.67110806]
[1767639257866,0.66229682,137.06,137.02,7.9691781]
[1767639259147,11.64663629,137.08,137.03,0.67110806]
[1767639259356,0.66229682,137.07,137.03,0.67110806]
[1767639259677,0.66229682,137.06,137.02,7.9691781]
[1767639260843,0.66229682,137.05,137.02,0.67110806]
[1767639261048,4.35147881,137.06,137.02,0.67110806]
[1767639261366,4.35147881,137.06,137.02,7.96921237]
[1767639262066,4.35147881,137.08,137.03,0.67110806]
[1767639262273,0.66229682,137.08,137.03,0.67110806]
[1767639262450,4.35147881,137.08,137.03,0.67110806]
[1767639264261,0.66229682,137.05,137.01,75.57110806]
[1767639264461,0.66229682,137.05,137.01,13.97110806]
[1767639264462,4.35147881,137.05,137.01,13.97110806]
[1767639264662,4.35147881,137.05,137.01,21.26940037]
[1767639264859,4.35147881,137.06,137.02,7.96918022]
[1767639265372,4.35147881,137.07,137.03,7.96873115]
[1767639266175,4.35147881,137.04,137.0,62.27110806]
[1767639266357,4.35147881,137.04,137.0,0.67110806]
[1767639266564,3.68918199,137.02,136.99,0.67110806]
[1767639266872,13.3,137.06,136.97,21.27194516]
[1767639266873,4.35147881,137.01,136.97,21.27194516]
[1767639267374,4.35147881,137.01,136.97,20.6008371]
[1767639267580,0.66229682,137.01,136.97,21.27194516]
[1767639267766,0.66229682,137.0,136.98,7.30025563]
[1767639268676,3.68918199,137.04,136.99,0.72267622]
[1767639269185,3.68918199,137.04,136.98,8.02293185]
[1767639269880,3.68918199,137.03,136.98,26.27377138]
[1767639270067,3.68918199,137.04,136.99,0.72267622]
[1767639270576,3.68918199,137.03,136.99,0.72267622]
[1767639270875,0.7110272,137.02,136.98,25.55109516]
[1767639271072,25.5346235,137.07,136.97,7.3004865]
[1767639271073,0.7110272,137.0,136.97,7.3004865]
[1767639271249,3.68918199,136.99,136.98,0.66888523]
[1767639271453,3.68918199,136.99,136.96,20.60120409]
[1767639271678,4.40020919,136.99,136.96,20.60120409]
[1767639271869,0.7110272,136.98,136.96,20.60120409]
[1767639272066,3.68918199,136.99,136.96,20.60120409]
[1767639272461,3.68918199,136.99,136.96,21.27008932]
[1767639272779,3.68918199,136.98,136.96,21.27008932]
[1767639273372,3.68918199,136.98,136.96,7.97008932]
[1767639274472,0.7110272,137.0,136.96,7.97008932]
[1767639274776,3.68918199,136.98,136.95,7.9706381]
[1767639274995,7.29937738,137.0,136.92,7.97212847]
[1767639274996,4.40020919,136.96,136.92,7.97212847]
[1767639275285,0.7110272,136.96,136.92,7.97228544]
[1767639275487,3.68918199,136.94,136.92,7.97228544]
[1767639276066,0.7110272,136.96,136.92,7.97228544]
[1767639276266,3.68918199,136.95,136.92,7.97228544]
[1767639276469,3.68918199,136.95,136.93,0.66888523]
[1767639276785,3.68918199,136.95,136.92,0.66888523]
[1767639277386,3.68918199,136.95,136.92,7.97236523]
[1767639278857,3.68918199,136.94,136.9,62.26888523]
[1767639279072,3.68918199,136.93,136.9,0.66888523]
[1767639279484,3.89461221,136.94,136.9,0.66888523]
[1767639279873,3.68918199,136.94,136.9,7.97339529]
[1767639280183,3.88955675,136.93,136.89,13.48908854]
[1767639280563,3.68918199,136.92,136.89,0.66888523]
[1767639280780,3.68918199,136.92,136.89,7.97398962]
[1767639281256,3.68918199,136.92,136.89,0.66888523]
[1767639282185,0.7110272,136.93,136.89,7.97399981]
[1767639282377,3.68918199,136.92,136.89,7.97399981]
[1767639282581,3.68918199,136.92,136.89,69.57399981]
[1767639282966,0.7110272,136.93,136.89,69.57399981]
[1767639283178,0.7110272,136.96,136.9,0.66888523]
[1767639283386,3.88955675,136.95,136.9,0.66888523]
[1767639283589,13.3,136.99,136.9,0.66888523]
[1767639283590,0.70592067,136.94,136.9,0.66888523]
[1767639283792,4.39510266,136.94,136.9,0.66888523]
[1767639283991,3.89461221,136.93,136.89,7.30511458]
[1767639284202,3.89461221,136.93,136.89,7.97399981]
[1767639285296,0.7110272,136.97,136.92,0.66888523]
[1767639285478,36.48865788,137.03,136.93,0.66888523]
[1767639285479,3.88955675,136.98,136.93,0.66888523]
[1767639285972,0.20037476,136.98,136.93,0.66888523]
[1767639286176,0.20037476,136.98,136.94,7.30246823]
[1767639286375,0.20037476,136.98,136.94,7.97135346]
[1767639289386,3.68918199,136.99,136.95,0.66888523]
[1767639289581,3.88955675,136.99,136.95,0.66888523]
[1767639289997,0.20037476,136.99,136.95,0.66888523]
[1767639290186,3.88955675,136.99,136.95,0.66888523]
[1767639290611,0.20037476,137.0,136.95,0.66888523]
[1767639290813,3.88955675,137.0,136.95,0.66888523]
[1767639291415,3.88955675,137.0,136.95,7.97038782]
[1767639291914,4.39510266,136.99,136.95,7.97038782]
[1767639294896,0.70592067,136.99,136.95,69.57038782]
[1767639295605,3.68918199,137.0,136.96,0.66319692]
[1767639296118,4.36398409,137.0,136.96,0.66319692]
[1767639297304,0.6748021,137.0,136.96,7.96436469]
[1767639297634,0.6748021,137.02,136.97,0.66319692]
[1767639297800,7.97310199,137.02,136.97,0.66319692]
[1767639298004,0.23623761,137.01,136.97,0.66319692]
[1767639299226,11.22422129,137.01,136.97,0.66319692]
[1767639299934,7.5350393,137.01,136.97,0.66319692]
[1767639300424,0.2405794,136.99,136.95,0.65716841]
[1767639300622,0.66611808,136.98,136.94,0.65716841]
[1767639300927,0.66611808,136.98,136.94,7.95956924]
[1767639301107,0.66611808,136.98,136.94,7.30240083]
[1767639301299,11.71171634,136.99,136.95,0.68391669]
[1767639301502,0.1888602,136.98,136.95,0.68391669]
[1767639303207,7.29950379,137.0,136.95,0.68391669]
[1767639303208,0.72265807,136.99,136.95,0.68391669]
[1767639303416,0.72265807,136.99,136.95,7.98584164]
[1767639303719,0.72265807,136.99,136.95,1.12241669]
[1767639304105,0.72265807,136.99,136.95,8.42427657]
[1767639304606,0.72265807,136.99,136.95,1.12241669]
[1767639305505,0.72265807,136.99,136.95,0.4385]
[1767639305506,0.1888602,136.98,136.95,0.4385]
[1767639305706,0.72265807,136.99,136.95,8.42428606]
[1767639305926,0.1888602,137.0,136.96,0.68391669]
[1767639306342,0.72265807,137.01,136.96,0.68391669]
[1767639306640,0.72265807,137.02,136.97,0.68391669]
[1767639307131,4.41184006,137.02,136.97,0.68391669]
[1767639307539,4.41184006,137.02,136.97,7.98466833]
[1767639307831,11.71018151,137.02,136.97,7.98466833]
[1767639308235,8.02099952,137.02,136.97,7.98466833]
[1767639309240,0.72265807,137.02,136.97,7.98466833]
[1767639309442,4.41184006,137.02,136.98,0.68391669]
[1767639310128,0.72265807,137.02,136.98,0.68391669]
[1767639311025,8.02119911,137.02,136.98,0.68391669]
[1767639311838,0.1888602,137.01,136.97,7.30075164]
[1767639312037,0.1888602,137.01,136.97,11.67385032]
[1767639312340,0.1888602,137.01,136.97,0.68391669]
[1767639312525,0.71732009,137.0,136.96,7.98510052]
[1767639313238,0.71732009,137.0,136.96,7.30118383]
[1767639313415,0.1941448,136.99,136.96,7.30118383]
[1767639315739,0.72265807,137.01,136.96,10.3475867]
[1767639316537,0.72265807,137.01,136.96,7.98510052]
[1767639316747,0.72265807,137.01,136.96,10.3475867]
[1767639316927,0.72265807,137.01,136.97,0.68391669]
[1767639317243,0.1888602,137.0,136.96,7.30118383]
[1767639317435,0.1888602,137.0,136.96,7.98510052]
[1767639317637,2.36248618,137.01,136.97,0.68391669]
[1767639317638,0.72265807,137.01,136.97,0.68391669]
[1767639317815,10.38288861,137.03,136.97,0.68391669]
[1767639318021,0.1888602,137.02,136.97,0.68391669]
[1767639318236,16.38514425,137.04,136.98,0.68391669]
[1767639318431,0.1888602,137.03,136.99,0.68391669]
[1767639318634,0.72265807,137.04,136.99,0.68391669]
[1767639318838,13.3,137.05,137.01,7.982654]
[1767639319440,13.4888602,137.05,137.01,0.68391669]
[1767639319636,15.85134638,137.05,137.0,7.98294234]
[1767639319837,13.4888602,137.05,137.0,7.98294234]
[1767639320150,2.36248618,137.06,137.01,0.68391669]
[1767639320448,2.55134638,137.06,137.01,0.68391669]
[1767639321047,2.55134638,137.06,137.01,7.98262094]
[1767639321644,0.71732009,137.05,137.01,0.68391669]
[1767639321863,3.07980627,137.05,137.01,0.68391669]
[1767639323743,2.55663098,137.04,137.0,7.98295697]
[1767639324247,0.19932424,137.02,136.99,61.6]
[1767639324556,0.19932424,137.02,136.99,7.29973758]
[1767639324937,2.36248618,137.03,136.99,7.98365427]
[1767639325139,0.72265807,137.04,136.99,7.98343782]
[1767639325358,0.1888602,137.03,136.99,7.98343782]
[1767639325539,0.1888602,137.03,136.99,8.42193782]
[1767639325938,2.55134638,137.04,137.0,0.68391669]
[1767639326168,0.1888602,137.04,137.0,0.68391669]
[1767639326971,2.55134638,137.04,137.0,0.68391669]
[1767639327141,2.55663098,137.08,137.01,0.68391669]
[1767639327342,0.71208833,137.07,137.02,0.68391669]
[1767639328161,3.07457451,137.07,137.02,0.68391669]
[1767639328352,0.2044006,137.04,137.0,7.29911876]
[1767639328549,2.56688678,137.04,137.0,7.29911876]
[1767639328752,2.56688678,137.04,137.0,0.68391669]
[1767639328946,2.56688678,137.04,137.0,7.98317971]
[1767639329148,2.36248618,137.05,137.01,0.68391669]
[1767639329357,2.36248618,137.03,136.99,1.12241669]
[1767639329663,2.36248618,137.03,136.99,8.42218477]
[1767639329855,3.07980627,137.04,137.0,0.68391669]
[1767639330050,0.72265807,137.06,137.01,0.68391669]
[1767639330238,3.08514425,137.06,137.01,0.68391669]
[1767639331266,0.72265807,137.06,137.02,7.95339805]
[1767639332743,3.08514425,137.06,137.02,7.95339805]
[1767639332944,0.72265807,137.06,137.02,7.95339805]
[1767639333867,3.08514425,137.06,137.02,7.95339805]
[1767639334254,0.72265807,137.06,137.02,7.95339805]
[1767639334457,3.08514425,137.06,137.02,7.95339805]
[1767639334644,0.72265807,137.06,137.02,7.95339805]
[1767639335751,3.08514425,137.06,137.02,7.95339805]
[1767639335959,3.08514425,137.06,137.02,7.29820464]
[1767639335960,0.1888602,137.05,137.02,7.29820464]
[1767639336466,2.36248618,137.06,137.02,7.95339805]
[1767639336770,2.60729522,137.06,137.02,7.95339805]
[1767639337072,2.60729522,137.06,137.02,0.65519341]
[1767639337974,2.36248618,137.06,137.02,0.65519341]
[1767639338270,2.36248618,137.05,137.02,0.65519341]
[1767639338473,2.60729522,137.05,137.02,0.65519341]
[1767639338874,2.60729522,137.05,137.0,61.6]
[1767639338875,0.66193074,137.04,137.0,7.2990495]
[1767639339073,0.34480904,137.1,137.06,0.65519341]
[1767639339264,0.65780124,137.09,137.05,13.46674354]
[1767639339466,0.65780124,137.09,137.05,0.65519341]
[1767639339653,2.61555464,137.08,137.04,7.95189994]
[1767639340271,0.25306846,137.08,137.04,7.95189994]
[1767639340470,2.36248618,137.09,137.05,0.65519341]
[1767639340965,0.1,137.1,137.06,0.65519341]
[1767639341164,0.1,137.1,137.06,7.95090457]
[1767639341165,0.34480904,137.1,137.06,7.95090457]
[1767639341470,2.70729522,137.1,137.06,7.95090457]
[1767639341863,0.24898025,137.08,137.04,0.65519341]
[1767639342057,2.36248618,137.07,137.04,0.65519341]
[1767639342273,3.02028742,137.07,137.02,7.95326837]
[1767639342574,0.65780124,137.07,137.03,0.65519341]
[1767639343073,3.02863027,137.09,137.05,7.29620576]
[1767639343373,0.1,137.1,137.06,7.951175]
[1767639343546,0.1,137.1,137.06,26.19136177]
[1767639343873,0.1,137.1,137.07,0.65519341]
[1767639345075,0.1,137.1,137.07,7.95056251]
[1767639345977,2.36248618,137.12,137.08,0.65519341]
[1767639346365,3.02441692,137.12,137.08,0.65519341]
[1767639347163,0.66193074,137.12,137.08,7.95018441]
[1767639347558,3.02441692,137.12,137.08,7.95018441]
[1767639347758,3.02441692,137.12,137.08,8.38868441]
[1767639348073,0.66614409,137.13,137.09,0.65519341]
[1767639348275,2.36248618,137.12,137.09,0.65519341]
[1767639348949,3.02863027,137.13,137.09,0.65519341]
[1767639349154,2.36248618,137.12,137.09,0.65519341]
[1767639349770,2.60729522,137.12,137.08,7.95018441]
[1767639350662,0.24480904,137.12,137.07,7.29536386]
[1767639350866,2.36248618,137.11,137.07,7.95055727]
[1767639352159,0.24480904,137.12,137.07,7.95055727]
[1767639352373,2.36248618,137.11,137.07,7.95055727]
[1767639353282,2.60729522,137.12,137.07,7.95055727]
[1767639354885,2.60729522,137.12,137.08,0.67544104]
[1767639355097,0.24480904,137.12,137.08,0.67544104]
[1767639355994,0.66678367,137.13,137.09,0.67544104]
[1767639356290,3.02926985,137.13,137.09,7.96987679]
[1767639356491,0.66678367,137.13,137.09,7.96987679]
[1767639356664,3.02926985,137.13,137.09,7.96987679]
[1767639356861,3.02926985,137.13,137.1,0.67544104]
[1767639357065,2.36248618,137.13,137.1,0.67544104]
[1767639357280,3.12926985,137.14,137.1,0.67544104]
[1767639357580,0.1,137.14,137.1,0.67544104]
[1767639357786,0.66678367,137.17,137.13,3.03792722]
[1767639358162,0.66678367,137.17,137.13,0.67544104]
[1767639358468,0.24417585,137.16,137.12,7.96800931]
[1767639358984,0.24417585,137.16,137.13,7.29190919]
[1767639359181,0.24417585,137.16,137.13,7.96735023]
[1767639359869,0.66678367,137.19,137.14,0.67544104]
[1767639360070,0.66678367,137.19,137.14,3.03792722]
[1767639360301,0.66678367,137.19,137.15,3.03792722]
[1767639360500,0.66678367,137.19,137.16,9.6532415]
[1767639360690,0.66678367,137.19,137.15,7.96650442]
[1767639360865,0.66678367,137.19,137.13,10.32751815]
[1767639360866,0.66255759,137.17,137.13,10.32751815]
[1767639361068,2.36248618,137.17,137.13,20.59215281]
[1767639361395,2.36248618,137.17,137.13,13.97287916]
[1767639361598,2.36248618,137.17,137.13,0.67287916]
[1767639362798,2.36248618,137.16,137.13,0.67287916]
[1767639363297,0.35933906,137.18,137.13,7.96517686]
[1767639363474,2.36248618,137.17,137.13,7.96517686]
[1767639363674,2.36248618,137.17,137.14,0.67287916]
[1767639363886,2.72182524,137.18,137.14,0.67287916]
[1767639364982,2.36248618,137.17,137.14,0.67287916]
[1767639365490,2.36248618,137.17,137.14,0.59913916]
[1767639366771,2.36248618,137.17,137.14,0.4385]
[1767639367092,2.79222444,137.17,137.14,0.4385]
[1767639367300,2.36248618,137.16,137.14,0.4385]
[1767639367471,2.79222444,137.17,137.14,0.4385]
[1767639367788,2.36248618,137.17,137.15,0.67287916]
[1767639368266,0.43307906,137.19,137.15,0.67287916]
[1767639368472,2.36248618,137.17,137.15,0.67287916]
[1767639369201,2.36248618,137.17,137.14,1.11137916]
[1767639370477,2.36248618,137.17,137.15,0.67287916]
[1767639370682,2.36248618,137.19,137.15,0.67287916]
[1767639370896,2.46148618,137.19,137.15,0.67287916]
[1767639371082,0.42973826,137.18,137.14,8.40313773]
[1767639371285,2.36248618,137.19,137.15,0.67287916]
[1767639371286,2.46148618,137.19,137.15,0.67287916]
[1767639371488,0.42973826,137.18,137.14,8.40313773]
[1767639372002,0.42973826,137.17,137.14,7.73025857]
[1767639372178,0.43307906,137.18,137.14,8.40313773]
[1767639372775,0.43307906,137.2,137.16,0.67287916]
[1767639372970,0.43307906,137.2,137.16,3.03536534]
[1767639373492,0.43307906,137.2,137.16,0.67287916]
[1767639373699,2.36248618,137.21,137.16,0.67287916]
[1767639373889,2.46248618,137.26,137.21,0.67287916]
[1767639374207,7.38562118,137.26,137.19,3.03536534]
[1767639374370,0.099,137.24,137.19,3.03536534]
[1767639374573,2.36248618,137.23,137.19,0.67287916]
[1767639374774,2.36248618,137.22,137.19,0.67287916]
[1767639375896,7.71689171,137.23,137.19,0.67287916]
[1767639376397,2.46803513,137.2,137.15,0.67287916]
[1767639376601,0.1,137.26,137.18,0.67287916]
[1767639376802,0.099,137.31,137.26,0.67287916]
[1767639377003,0.099,137.32,137.26,0.67287916]
[1767639377204,0.099,137.32,137.22,0.67287916]
[1767639377400,0.099,137.32,137.19,47.1421445]
[1767639377401,0.10329739,137.3,137.25,0.67287916]
[1767639377598,0.52448385,137.28,137.22,4.35452959]
[1767639377900,7.38232119,137.3,137.23,0.67287916]
[1767639378106,3.68165043,137.28,137.24,0.67287916]
[1767639378289,0.52873826,137.29,137.24,3.68165043]
[1767639378489,0.10329739,137.28,137.24,3.68165043]
[1767639378796,3.68165043,137.29,137.24,0.67287916]
[1767639378797,0.099,137.29,137.24,0.67287916]
[1767639379000,0.099,137.29,137.24,4.35452959]
[1767639379205,0.099,137.29,137.23,7.28695785]
[1767639379395,0.099,137.29,137.25,3.68165043]
[1767639379600,3.68165043,137.3,137.26,0.67287916]
[1767639379804,0.099,137.29,137.25,3.68165043]
[1767639380106,0.099,137.29,137.24,7.9588733]
[1767639380406,0.52873826,137.28,137.22,0.67287916]
[1767639380596,3.78494782,137.27,137.22,0.67287916]
[1767639380915,0.10329739,137.27,137.22,7.96007684]
[1767639381088,3.68165043,137.27,137.23,0.67287916]
[1767639381295,3.68165043,137.28,137.24,0.67287916]
[1767639381491,25.59071836,137.3,137.24,0.67287916]
[1767639381696,3.68165043,137.28,137.24,0.67287916]
[1767639381888,7.38241538,137.3,137.24,0.67287916]
[1767639382088,3.68165043,137.28,137.24,0.67287916]
[1767639382307,0.52873826,137.29,137.24,0.67287916]
[1767639382508,3.68165043,137.27,137.24,0.67287916]
[1767639382898,3.68165043,137.28,137.24,0.67287916]
[1767639383286,0.65820817,137.29,137.24,0.67287916]
[1767639383690,3.68165043,137.28,137.24,0.67287916]
[1767639383892,3.68165043,137.28,137.25,0.67287916]
[1767639385007,7.94224165,137.29,137.25,0.67287916]
[1767639385313,3.68165043,137.27,137.23,0.67287916]
[1767639385605,7.97742894,137.28,137.21,0.67287916]
[1767639385606,3.68165043,137.24,137.21,0.67287916]
[1767639385986,0.69322232,137.27,137.21,7.2879581]
[1767639386200,3.68165043,137.25,137.21,7.96083726]
[1767639386612,4.37487275,137.25,137.21,0.67287916]
[1767639386917,3.68165043,137.22,137.19,0.67287916]
[1767639387209,3.68165043,137.22,137.16,88.26841854]
[1767639387210,0.69322232,137.23,137.17,7.96273118]
[1767639387414,3.68165043,137.22,137.18,0.67287916]
[1767639387612,0.69322232,137.22,137.18,0.67287916]
[1767639387806,3.68165043,137.21,137.18,0.67287916]
[1767639388007,3.62276238,137.21,137.18,0.67287916]
[1767639388207,3.68165043,137.2,137.16,21.24350451]
[1767639388409,0.69322232,137.21,137.16,21.24350451]
[1767639388610,3.68165043,137.2,137.16,21.24350451]
[1767639388913,3.68165043,137.2,137.16,7.96350451]
[1767639389115,3.68165043,137.19,137.16,7.96350451]
[1767639389316,3.62165041,137.19,137.15,7.29113157]
[1767639389710,3.62165041,137.19,137.15,7.96401073]
[1767639390016,0.69322232,137.2,137.16,0.4385]
[1767639390203,3.68165043,137.19,137.16,0.4385]
[1767639390516,3.68165043,137.19,137.16,7.57916083]
[1767639390691,0.69322232,137.2,137.15,7.7423572]
[1767639390892,3.68165043,137.18,137.15,0.45111292]
[1767639391098,3.68165043,137.19,137.15,7.74226847]
[1767639391292,4.37487275,137.2,137.15,7.74226847]
[1767639391489,0.71116969,137.24,137.18,3.68165043]
[1767639391695,0.71116969,137.26,137.19,3.68165043]
[1767639391938,3.68165043,137.25,137.19,3.68165043]
[1767639392118,4.39282012,137.26,137.2,3.68165043]
[1767639392507,4.39282012,137.26,137.18,25.5139233]
[1767639392705,4.39282012,137.26,137.2,4.37443481]
[1767639393116,3.68165043,137.25,137.2,0.69278438]
[1767639393318,0.71116969,137.26,137.21,4.37443481]
[1767639393523,4.39282012,137.26,137.21,0.69278438]
[1767639394018,4.39282012,137.24,137.19,0.69278438]
[1767639394715,4.39282012,137.23,137.19,0.69278438]
[1767639395015,4.39282012,137.23,137.18,7.28921574]
[1767639395016,3.68165043,137.22,137.18,7.28921574]
[1767639395215,4.39282012,137.22,137.18,7.28921574]
[1767639395693,3.68165043,137.21,137.17,7.98279295]
[1767639395897,4.39282012,137.22,137.18,7.2896533]
[1767639396299,3.68165043,137.21,137.18,7.2896533]
[1767639396704,3.62165043,137.21,137.18,7.2896533]
[1767639397214,0.71116969,137.22,137.16,7.29046909]
[1767639397215,4.39282012,137.2,137.16,7.29046909]
[1767639397419,0.71116969,137.17,137.12,5.51529]
[1767639397616,3.68165043,137.15,137.11,0.69278438]
[1767639397818,3.68165043,137.15,137.11,7.98600925]
[1767639398002,3.68165043,137.15,137.12,7.292723]
[1767639398201,3.68165043,137.14,137.11,0.69278438]
[1767639398400,3.68165043,137.13,137.09,7.98694569]
[1767639398620,10.97570004,137.13,137.08,40.52935637]
[1767639398792,10.97570004,137.13,137.08,41.22214075]
[1767639398992,10.97570004,137.13,137.08,51.4866711]
[1767639399197,10.97570004,137.13,137.08,41.22214075]
[1767639399405,10.26453035,137.12,137.08,41.22214075]
[1767639399605,0.71116969,137.11,137.08,40.52935637]
[1767639400221,10.26453035,137.14,137.09,10.26453035]
[1767639400406,10.26453035,137.14,137.09,71.86453035]
[1767639400606,10.26453035,137.15,137.1,10.26453035]
[1767639400807,10.26453035,137.15,137.1,17.55802976]
[1767639401412,10.26453035,137.15,137.1,7.29349941]
[1767639401717,10.26453035,137.15,137.09,60.875]
[1767639401718,10.26453035,137.13,137.09,60.875]
[1767639401909,10.26453035,137.12,137.09,60.15]
[1767639402098,10.26453035,137.12,137.09,60.84278438]
[1767639402299,7.33505854,137.15,137.09,60.84278438]
[1767639402730,10.26453035,137.13,137.09,68.1372465]
[1767639403319,0.04367561,137.15,137.1,0.69278438]
[1767639403521,10.26453035,137.13,137.1,0.69278438]
[1767639403823,10.26453035,137.13,137.09,0.69278438]
[1767639404015,0.04367561,137.15,137.1,0.69278438]
[1767639404201,10.26453035,137.14,137.1,0.69278438]
[1767639404402,10.26453035,137.13,137.1,0.69278438]
[1767639405119,10.26453035,137.13,137.08,33.23439934]
[1767639405120,17.55637475,137.14,137.08,41.22212629]
[1767639405325,17.55637475,137.14,137.09,10.95731473]
[1767639405825,0.04367561,137.12,137.08,43.49892969]
[1767639406029,0.04367561,137.12,137.09,10.26453035]
[1767639406226,0.04367561,137.14,137.1,10.26453035]
[1767639406608,0.04367561,137.14,137.09,7.29413254]
[1767639406957,0.04367561,137.14,137.1,10.26453035]
[1767639407306,0.04367561,137.13,137.09,10.26453035]
[1767639407610,0.04367561,137.13,137.08,41.22199554]
[1767639407611,10.30820596,137.14,137.08,41.22199554]
[1767639408011,10.30820596,137.13,137.08,44.19171407]
[1767639408627,20.57139621,137.15,137.08,33.19072373]
[1767639408628,10.30820596,137.11,137.08,33.19072373]
[1767639408808,10.30820596,137.11,137.05,7.98903759]
[1767639408809,10.26453035,137.1,137.05,10.95731473]
[1767639409012,10.26453035,137.1,137.05,0.69278438]
[1767639409425,10.26453035,137.1,137.05,18.2538848]
[1767639409620,17.55867235,137.1,137.05,7.98937554]
[1767639409821,17.55867235,137.1,137.05,18.25390589]
[1767639410135,17.55867235,137.1,137.05,7.98937554]